fUSD/lending_fUSD_20240223
["ID","MTS","AMOUNT","RATE_DAILY","PERIOD"]
[314946556,1708692650198,-407.19926501,0.00027945,2]
[314946557,1708692650208,-500.0,0.00027945,2]
[314946558,1708692650217,-1094.13,0.00027945,2]
[314946559,1708692650227,-500.0,0.00027945,2]
[314946560,1708692650236,-500.0,0.00027945,2]
[314946561,1708692650245,-1067.45,0.00027945,2]
[314946562,1708692650255,-500.0,0.00027945,2]
[314946563,1708692650264,-233.35827752,0.00027945,2]
[314946564,1708692650273,-620.10027065,0.00027945,2]
[314946565,1708692650283,-500.0,0.00027945,2]
[314946566,1708692650292,-500.0,0.00027945,2]
[314946567,1708692650302,-1378.02,0.00027945,2]
[314946568,1708692650310,-1250.67,0.00027945,2]
[314946569,1708692650319,-500.0,0.00027945,2]
[314946570,1708692650328,-500.0,0.00027945,2]
[314946571,1708692650337,-839.9,0.00027945,2]
[314946572,1708692650347,-500.0,0.00027945,2]
[314946573,1708692650356,-1152.06,0.00027945,2]
[314946574,1708692650365,-500.0,0.00027945,2]
[314946575,1708692650375,-500.0,0.00027945,2]
[314946576,1708692650385,-1035.56,0.00027945,2]
[314946577,1708692650395,-8575.79,0.00027945,2]
[314946578,1708692650404,-500.0,0.00027945,2]
[314946579,1708692650413,-500.0,0.00027945,2]
[314946580,1708692650422,-500.0,0.00027945,2]
[314946581,1708692650431,-500.0,0.00027945,2]
[314946582,1708692650441,-500.0,0.00027945,2]
[314946583,1708692650450,-500.0,0.00027945,2]
[314946584,1708692650459,-500.0,0.00027945,2]
[314946585,1708692650469,-553.04,0.00027945,2]
[314946586,1708692650478,-500.0,0.00027945,2]
[314946587,1708692650487,-500.0,0.00027945,2]
[314946588,1708692650496,-1094.11,0.00027945,2]
[314946589,1708692650505,-500.0,0.00027945,2]
[314946590,1708692650515,-500.0,0.00027945,2]
[314946591,1708692650524,-500.0,0.00027945,2]
[314946592,1708692650534,-2230.04,0.00027945,2]
[314946593,1708692650543,-500.0,0.00027945,2]
[314946594,1708692650552,-610.11,0.00027945,2]
[314946595,1708692650561,-500.0,0.00027945,2]
[314946596,1708692650571,-1728.91,0.00027945,2]
[314946597,1708692650580,-500.0,0.00027945,2]
[314946598,1708692650589,-500.0,0.00027945,2]
[314946599,1708692650599,-2471.7,0.00027945,2]
[314946600,1708692650608,-500.0,0.00027945,2]
[314946601,1708692650618,-500.0,0.00027945,2]
[314946602,1708692650894,-500.0,0.00027945,2]
[314946603,1708692650904,-1384.33,0.00027945,2]
[314946604,1708692650914,-749.3,0.00027945,2]
[314946605,1708692650923,-500.0,0.00027945,2]
[314946606,1708692650933,-500.0,0.00027945,2]
[314946607,1708692650943,-807.94,0.00027945,2]
[314946608,1708692650952,-198.82033988,0.00027945,2]
[314946609,1708692650962,-1029.11,0.00027945,2]
[314946610,1708692650972,-1015.68,0.00027945,2]
[314946611,1708692650982,-500.0,0.00027945,2]
[314946612,1708692650991,-694.17,0.00027945,2]
[314946613,1708692651001,-785.24,0.00027945,2]
[314946614,1708692651011,-500.0,0.00027945,2]
[314946615,1708692651021,-554.5557926,0.00027945,2]
[314946616,1708692651030,-795.57,0.00027945,2]
[314946617,1708692651040,-500.0,0.00027945,2]
[314946618,1708692651051,-1788.68,0.00027945,2]
[314946619,1708692651061,-500.0,0.00027945,2]
[314946620,1708692651071,-2315.39,0.00027945,2]
[314946621,1708692651082,-1393.35,0.00027945,2]
[314946622,1708692651093,-500.0,0.00027945,2]
[314946623,1708692651102,-617.77,0.00027945,2]
[314946624,1708692651112,-500.0,0.00027945,2]
[314946625,1708692651123,-500.0,0.00027945,2]
[314946626,1708692651134,-500.0,0.00027945,2]
[314946627,1708692651144,-2980.97,0.00027945,2]
[314946628,1708692651155,-977.62,0.00027945,2]
[314946629,1708692651165,-574.67168932,0.00027945,2]
[314946630,1708692651175,-500.0,0.00027945,2]
[314946631,1708692651185,-500.0,0.00027945,2]
[314946632,1708692651195,-500.0,0.00027945,2]
[314946633,1708692651205,-500.0,0.00027945,2]
[314946634,1708692651215,-500.0,0.00027945,2]
[314946635,1708692651224,-500.0,0.00027945,2]
[314946636,1708692651233,-500.0,0.00027945,2]
[314946637,1708692651243,-500.0,0.00027945,2]
[314946638,1708692651253,-1880.69,0.00027945,2]
[314946639,1708692651262,-500.0,0.00027945,2]
[314946640,1708692651272,-500.0,0.00027945,2]
[314946641,1708692651282,-2152.11,0.00027945,2]
[314946642,1708692651292,-257.4842491,0.00027945,2]
[314946643,1708692651302,-500.0,0.00027945,2]
[314946644,1708692651311,-619.85,0.00027945,2]
[314946645,1708692651321,-642.74,0.00027945,2]
[314946646,1708692651331,-730.41,0.00027945,2]
[314946647,1708692651341,-500.0,0.00027945,2]
[314946648,1708692651351,-947.53,0.00027945,2]
[314946649,1708692651360,-639.34,0.00027945,2]
[314946650,1708692651370,-1392.77,0.00027945,2]
[314946651,1708692651380,-3459.37,0.00027945,2]
[314946652,1708692651390,-500.0,0.00027945,2]
[314946653,1708692651400,-500.0,0.00027945,2]
[314946654,1708692651410,-554.51,0.00027945,2]
[314946655,1708692651420,-500.0,0.00027945,2]
[314946656,1708692651430,-500.0,0.00027945,2]
[314946657,1708692651439,-500.0,0.00027945,2]
[314946658,1708692651449,-7552.31,0.00027945,2]
[314946659,1708692651458,-500.0,0.00027945,2]
[314946660,1708692651467,-875.12,0.00027945,2]
[314946661,1708692651477,-500.0,0.00027945,2]
[314946662,1708692651487,-645.41,0.00027945,2]
[314946663,1708692651497,-500.0,0.00027945,2]
[314946664,1708692651507,-546.32585537,0.00027945,2]
[314946665,1708692651516,-721.76,0.00027945,2]
[314946666,1708692651526,-500.0,0.00027945,2]
[314946667,1708692651535,-500.0,0.00027945,2]
[314946668,1708692651545,-3115.44150694,0.00028007,2]
[314946669,1708692651555,-383.18,0.0002803,2]
[314946670,1708692651565,-810.09,0.00028039,2]
[314946671,1708692651575,-177.74,0.00028041,2]
[314946672,1708692651584,-205.39112878,0.00028072,2]
[314946673,1708692651594,-648290.58138313,0.00028081,4]
[314946674,1708692651604,-500.0,0.00028082,2]
[314946675,1708692651614,-500.0,0.00028082,2]
[314946676,1708692651624,-500.0,0.00028082,2]
[314946677,1708692651635,-500.0,0.00028082,2]
[314946678,1708692651644,-500.0,0.00028082,2]
[314946679,1708692651654,-500.0,0.00028082,2]
[314946680,1708692651664,-500.0,0.00028082,2]
[314946681,1708692651674,-500.0,0.00028082,2]
[314946682,1708692651685,-500.0,0.00028082,2]
[314946683,1708692651695,-214.7804473,0.00028082,2]
[314946684,1708692651704,-500.0,0.00028082,2]
[314946685,1708692651714,-500.0,0.00028082,2]
[314946686,1708692651723,-500.0,0.00028082,2]
[314946687,1708692651733,-503.84,0.00028082,2]
[314946688,1708692651743,-500.0,0.00028082,2]
[314946689,1708692651755,-500.0,0.00028082,2]
[314946690,1708692651764,-500.0,0.00028082,2]
[314946691,1708692651773,-500.0,0.00028082,2]
[314946692,1708692651783,-500.0,0.00028082,2]
[314946693,1708692651793,-500.0,0.00028082,2]
[314946694,1708692651802,-500.0,0.00028082,2]
[314946695,1708692651812,-500.0,0.00028082,2]
[314946696,1708692651821,-500.0,0.00028082,2]
[314946697,1708692651831,-500.0,0.00028082,2]
[314946698,1708692651841,-500.0,0.00028082,2]
[314946699,1708692651850,-500.0,0.00028082,2]
[314946700,1708692651860,-500.0,0.00028082,2]
[314946701,1708692651870,-500.0,0.00028082,2]
[314946702,1708692651879,-500.0,0.00028082,2]
[314946703,1708692651889,-500.0,0.00028082,2]
[314946704,1708692651899,-687.16,0.00028082,2]
[314946705,1708692651909,-4492.57,0.00028082,2]
[314946706,1708692651919,-500.0,0.00028082,2]
[314946707,1708692651928,-500.0,0.00028082,2]
[314946708,1708692651938,-505.22,0.00028082,2]
[314946709,1708692651947,-500.0,0.00028082,2]
[314946710,1708692651957,-500.0,0.00028082,2]
[314946711,1708692651967,-678.21,0.00028082,2]
[314946712,1708692651977,-500.0,0.00028082,2]
[314946713,1708692651987,-581.77118054,0.00028082,2]
[314946714,1708692651997,-500.0,0.00028082,2]
[314946715,1708692652007,-500.0,0.00028082,2]
[314946716,1708692652016,-500.0,0.00028082,2]
[314946717,1708692652026,-1389.55,0.00028082,2]
[314946718,1708692652035,-2419.95,0.00028082,2]
[314946719,1708692652045,-518.78048548,0.00028082,2]
[314946720,1708692652055,-500.0,0.00028082,2]
[314946721,1708692652065,-500.0,0.00028082,2]
[314946722,1708692652075,-500.0,0.00028082,2]
[314946723,1708692652086,-500.0,0.00028082,2]
[314946724,1708692652096,-1094.13,0.00028082,2]
[314946725,1708692652105,-500.0,0.00028082,2]
[314946726,1708692652114,-500.0,0.00028082,2]
[314946727,1708692652124,-1067.45,0.00028082,2]
[314946728,1708692652134,-500.0,0.00028082,2]
[314946729,1708692652143,-500.0,0.00028082,2]
[314946730,1708692652152,-500.0,0.00028082,2]
[314946731,1708692652162,-1378.02,0.00028082,2]
[314946732,1708692652171,-1250.67,0.00028082,2]
[314946733,1708692652180,-500.0,0.00028082,2]
[314946734,1708692652189,-500.0,0.00028082,2]
[314946735,1708692652198,-839.9,0.00028082,2]
[314946736,1708692652207,-500.0,0.00028082,2]
[314946737,1708692652216,-1152.06,0.00028082,2]
[314946738,1708692652225,-500.0,0.00028082,2]
[314946739,1708692652235,-1035.56,0.00028082,2]
[314946740,1708692652244,-500.0,0.00028082,2]
[314946741,1708692652254,-8575.79,0.00028082,2]
[314946742,1708692652263,-500.0,0.00028082,2]
[314946743,1708692652273,-500.0,0.00028082,2]
[314946744,1708692652283,-500.0,0.00028082,2]
[314946745,1708692652293,-500.0,0.00028082,2]
[314946746,1708692652302,-500.0,0.00028082,2]
[314946747,1708692652313,-500.0,0.00028082,2]
[314946748,1708692652323,-500.0,0.00028082,2]
[314946749,1708692652333,-553.04,0.00028082,2]
[314946750,1708692652343,-500.0,0.00028082,2]
[314946751,1708692652353,-500.0,0.00028082,2]
[314946752,1708692652363,-1094.11,0.00028082,2]
[314946753,1708692652373,-500.0,0.00028082,2]
[314946754,1708692652383,-500.0,0.00028082,2]
[314946755,1708692652392,-500.0,0.00028082,2]
[314946756,1708692652402,-2230.04,0.00028082,2]
[314946757,1708692652411,-500.0,0.00028082,2]
[314946758,1708692652420,-610.11,0.00028082,2]
[314946759,1708692652430,-500.0,0.00028082,2]
[314946760,1708692652440,-1728.91,0.00028082,2]
[314946761,1708692652449,-500.0,0.00028082,2]
[314946762,1708692652459,-151.0,0.00028082,7]
[314946763,1708692652469,-500.0,0.00028082,2]
[314946764,1708692652478,-2471.7,0.00028082,2]
[314946765,1708692652488,-500.0,0.00028082,2]
[314946766,1708692652497,-500.0,0.00028082,2]
[314946767,1708692652507,-500.0,0.00028082,2]
[314946768,1708692652516,-1384.33,0.00028082,2]
[314946769,1708692652525,-749.3,0.00028082,2]
[314946770,1708692652534,-500.0,0.00028082,2]
[314946771,1708692652543,-500.0,0.00028082,2]
[314946772,1708692652553,-807.94,0.00028082,2]
[314946773,1708692652563,-1029.11,0.00028082,2]
[314946774,1708692652572,-1015.68,0.00028082,2]
[314946775,1708692652581,-500.0,0.00028082,2]
[314946776,1708692652590,-694.17,0.00028082,2]
[314946777,1708692652599,-785.24,0.00028082,2]
[314946778,1708692652608,-500.0,0.00028082,2]
[314946779,1708692652618,-795.57,0.00028082,2]
[314946780,1708692652627,-500.0,0.00028082,2]
[314946781,1708692652638,-1788.68,0.00028082,2]
[314946782,1708692652647,-500.0,0.00028082,2]
[314946783,1708692652656,-2315.39,0.00028082,2]
[314946784,1708692652666,-1393.35,0.00028082,2]
[314946785,1708692652675,-500.0,0.00028082,2]
[314946786,1708692652685,-617.77,0.00028082,2]
[314946787,1708692652695,-500.0,0.00028082,2]
[314946788,1708692652704,-500.0,0.00028082,2]
[314946789,1708692652714,-500.0,0.00028082,2]
[314946790,1708692652724,-2980.97,0.00028082,2]
[314946791,1708692652733,-977.62,0.00028082,2]
[314946792,1708692652743,-500.0,0.00028082,2]
[314946793,1708692652753,-500.0,0.00028082,2]
[314946794,1708692652765,-500.0,0.00028082,2]
[314946795,1708692652774,-500.0,0.00028082,2]
[314946796,1708692652784,-500.0,0.00028082,2]
[314946797,1708692652794,-500.0,0.00028082,2]
[314946798,1708692652803,-500.0,0.00028082,2]
[314946799,1708692652813,-500.0,0.00028082,2]
[314946800,1708692652822,-1880.69,0.00028082,2]
[314946801,1708692652831,-500.0,0.00028082,2]
[314946802,1708692652841,-500.0,0.00028082,2]
[314946803,1708692652851,-2152.11,0.00028082,2]
[314946804,1708692652861,-500.0,0.00028082,2]
[314946805,1708692652870,-619.85,0.00028082,2]
[314946806,1708692652880,-642.74,0.00028082,2]
[314946807,1708692652891,-730.41,0.00028082,2]
[314946808,1708692652901,-500.0,0.00028082,2]
[314946809,1708692652911,-947.53,0.00028082,2]
[314946810,1708692652920,-639.34,0.00028082,2]
[314946811,1708692652930,-1392.77,0.00028082,2]
[314946812,1708692652939,-151.0,0.00028082,7]
[314946813,1708692652949,-500.0,0.00028082,2]
[314946814,1708692652958,-3459.37,0.00028082,2]
[314946815,1708692652968,-500.0,0.00028082,2]
[314946816,1708692652978,-554.51,0.00028082,2]
[314946817,1708692652987,-500.0,0.00028082,2]
[314946818,1708692652997,-500.0,0.00028082,2]
[314946819,1708692653006,-503.98344368,0.00028082,2]
[314946820,1708692653016,-7552.31,0.00028082,2]
[314946821,1708692653025,-151.0,0.00028082,7]
[314946822,1708692653034,-500.0,0.00028082,2]
[314946823,1708692653043,-875.12,0.00028082,2]
[314946824,1708692653052,-500.0,0.00028082,2]
[314946825,1708692653062,-151.0,0.00028082,7]
[314946826,1708692653071,-645.41,0.00028082,2]
[314946827,1708692653081,-500.0,0.00028082,2]
[314946828,1708692653091,-721.76,0.00028082,2]
[314946829,1708692653100,-500.0,0.00028082,2]
[314946830,1708692653110,-157.02,0.00028114,2]
[314946831,1708692653119,-150.0,0.00028137,7]
[314946832,1708692653128,-162.59,0.00028156,2]
[314946833,1708692653138,-613.82963463,0.00028188,4]
[314946834,1708692653148,-383.18,0.00028189,2]
[314946835,1708692653158,-500.0,0.00028219,2]
[314946836,1708692653167,-500.0,0.00028219,2]
[314946837,1708692653176,-500.0,0.00028219,2]
[314946838,1708692653186,-500.0,0.00028219,2]
[314946839,1708692653195,-500.0,0.00028219,2]
[314946840,1708692653204,-500.0,0.00028219,2]
[314946841,1708692653213,-536.6,0.00028219,2]
[314946842,1708692653223,-500.0,0.00028219,2]
[314946843,1708692653286,-500.0,0.00028219,2]
[314946844,1708692653295,-500.0,0.00028219,2]
[314946845,1708692653305,-500.0,0.00028219,2]
[314946846,1708692653314,-612.43390828,0.00028219,2]
[314946847,1708692653323,-503.84,0.00028219,2]
[314946848,1708692653332,-251.96,0.00028219,2]
[314946849,1708692653341,-500.0,0.00028219,2]
[314946850,1708692653350,-500.0,0.00028219,2]
[314946851,1708692653359,-500.0,0.00028219,2]
[314946852,1708692653368,-500.0,0.00028219,2]
[314946853,1708692653377,-500.0,0.00028219,2]
[314946854,1708692653387,-500.0,0.00028219,2]
[314946855,1708692653395,-500.0,0.00028219,2]
[314946856,1708692653405,-210.76039976,0.00028219,2]
[314946857,1708692653414,-500.0,0.00028219,2]
[314946858,1708692653423,-500.0,0.00028219,2]
[314946859,1708692653432,-500.0,0.00028219,2]
[314946860,1708692653441,-161.836624,0.00028219,7]
[314946861,1708692653450,-214.50250406,0.00028219,2]
[314946862,1708692653459,-500.0,0.00028219,2]
[314946863,1708692653468,-500.0,0.00028219,2]
[314946864,1708692653477,-500.0,0.00028219,2]
[314946865,1708692653486,-687.16,0.00028219,2]
[314946866,1708692653495,-4492.57,0.00028219,2]
[314946867,1708692653505,-500.0,0.00028219,2]
[314946868,1708692653514,-500.0,0.00028219,2]
[314946869,1708692653523,-505.22,0.00028219,2]
[314946870,1708692653532,-500.0,0.00028219,2]
[314946871,1708692653541,-500.0,0.00028219,2]
[314946872,1708692653550,-678.21,0.00028219,2]
[314946873,1708692653559,-500.0,0.00028219,2]
[314946874,1708692653568,-500.0,0.00028219,2]
[314946875,1708692653576,-500.0,0.00028219,2]
[314946876,1708692653585,-500.0,0.00028219,2]
[314946877,1708692653594,-1389.55,0.00028219,2]
[314946878,1708692653604,-2419.95,0.00028219,2]
[314946879,1708692653613,-500.0,0.00028219,2]
[314946880,1708692653622,-500.0,0.00028219,2]
[314946881,1708692653632,-500.0,0.00028219,2]
[314946882,1708692653641,-500.0,0.00028219,2]
[314946883,1708692653650,-1094.13,0.00028219,2]
[314946884,1708692653659,-500.0,0.00028219,2]
[314946885,1708692653669,-500.0,0.00028219,2]
[314946886,1708692653678,-500.0,0.00028219,2]
[314946887,1708692653687,-1067.45,0.00028219,2]
[314946888,1708692653696,-500.0,0.00028219,2]
[314946889,1708692653705,-500.0,0.00028219,2]
[314946890,1708692653714,-1378.02,0.00028219,2]
[314946891,1708692653724,-1250.67,0.00028219,2]
[314946892,1708692653733,-500.0,0.00028219,2]
[314946893,1708692653743,-500.0,0.00028219,2]
[314946894,1708692653755,-839.9,0.00028219,2]
[314946895,1708692653764,-500.0,0.00028219,2]
[314946896,1708692653773,-1152.06,0.00028219,2]
[314946897,1708692653782,-500.0,0.00028219,2]
[314946898,1708692653791,-1035.56,0.00028219,2]
[314946899,1708692653801,-8575.79,0.00028219,2]
[314946900,1708692653810,-500.0,0.00028219,2]
[314946901,1708692653819,-500.0,0.00028219,2]
[314946902,1708692653828,-500.0,0.00028219,2]
[314946903,1708692653839,-500.0,0.00028219,2]
[314946904,1708692653848,-500.0,0.00028219,2]
[314946905,1708692653857,-500.0,0.00028219,2]
[314946906,1708692653866,-500.0,0.00028219,2]
[314946907,1708692653876,-500.0,0.00028219,2]
[314946908,1708692653886,-553.04,0.00028219,2]
[314946909,1708692653895,-500.0,0.00028219,2]
[314946910,1708692653904,-500.0,0.00028219,2]
[314946911,1708692653914,-1094.11,0.00028219,2]
[314946912,1708692653923,-500.0,0.00028219,2]
[314946913,1708692653932,-500.0,0.00028219,2]
[314946914,1708692653942,-500.0,0.00028219,2]
[314946915,1708692653951,-2230.04,0.00028219,2]
[314946916,1708692653960,-500.0,0.00028219,2]
[314946917,1708692653969,-610.11,0.00028219,2]
[314946918,1708692653978,-500.0,0.00028219,2]
[314946919,1708692653988,-1728.91,0.00028219,2]
[314946920,1708692653997,-500.0,0.00028219,2]
[314946921,1708692654006,-500.0,0.00028219,2]
[314946922,1708692654015,-2471.7,0.00028219,2]
[314946923,1708692654025,-500.0,0.00028219,2]
[314946924,1708692654034,-533.83049972,0.00028219,2]
[314946925,1708692654043,-500.0,0.00028219,2]
[314946926,1708692654052,-1384.33,0.00028219,2]
[314946927,1708692654062,-749.3,0.00028219,2]
[314946928,1708692654071,-500.0,0.00028219,2]
[314946929,1708692654081,-500.0,0.00028219,2]
[314946930,1708692654091,-807.94,0.00028219,2]
[314946931,1708692654101,-1029.11,0.00028219,2]
[314946932,1708692654110,-1015.68,0.00028219,2]
[314946933,1708692654119,-500.0,0.00028219,2]
[314946934,1708692654128,-694.17,0.00028219,2]
[314946935,1708692654138,-785.24,0.00028219,2]
[314946936,1708692654148,-500.0,0.00028219,2]
[314946937,1708692654156,-795.57,0.00028219,2]
[314946938,1708692654166,-500.0,0.00028219,2]
[314946939,1708692654176,-1788.68,0.00028219,2]
[314946940,1708692654185,-500.0,0.00028219,2]
[314946941,1708692654194,-2315.39,0.00028219,2]
[314946942,1708692654203,-1393.35,0.00028219,2]
[314946943,1708692654212,-500.0,0.00028219,2]
[314946944,1708692654221,-500.0,0.00028219,2]
[314946945,1708692654231,-617.77,0.00028219,2]
[314946946,1708692654240,-500.0,0.00028219,2]
[314946947,1708692654249,-452.52595063,0.00028219,2]
[314946948,1708692654259,-2980.97,0.00028219,2]
[314946949,1708692654269,-977.62,0.00028219,2]
[314946950,1708692654278,-500.0,0.00028219,2]
[314946951,1708692654287,-500.0,0.00028219,2]
[314946952,1708692654296,-500.0,0.00028219,2]
[314946953,1708692654305,-500.0,0.00028219,2]
[314946954,1708692654314,-500.0,0.00028219,2]
[314946955,1708692654323,-500.0,0.00028219,2]
[314946956,1708692654333,-500.0,0.00028219,2]
[314946957,1708692654342,-500.0,0.00028219,2]
[314946958,1708692654351,-1880.69,0.00028219,2]
[314946959,1708692654360,-500.0,0.00028219,2]
[314946960,1708692654369,-2152.11,0.00028219,2]
[314946961,1708692654379,-500.0,0.00028219,2]
[314946962,1708692654389,-500.0,0.00028219,2]
[314946963,1708692654398,-619.85,0.00028219,2]
[314946964,1708692654408,-642.74,0.00028219,2]
[314946965,1708692654418,-730.41,0.00028219,2]
[314946966,1708692654428,-500.0,0.00028219,2]
[314946967,1708692654437,-947.53,0.00028219,2]
[314946968,1708692654446,-639.34,0.00028219,2]
[314946969,1708692654455,-1392.77,0.00028219,2]
[314946970,1708692654464,-500.0,0.00028219,2]
[314946971,1708692654473,-3459.37,0.00028219,2]
[314946972,1708692654482,-500.0,0.00028219,2]
[314946973,1708692654491,-554.51,0.00028219,2]
[314946974,1708692654500,-546.53267588,0.00028219,2]
[314946975,1708692654509,-500.0,0.00028219,2]
[314946976,1708692654519,-7552.31,0.00028219,2]
[314946977,1708692654528,-492.0086554,0.00028219,2]
[314946978,1708692654537,-875.12,0.00028219,2]
[314946979,1708692654546,-500.0,0.00028219,2]
[314946980,1708692654555,-645.41,0.00028219,2]
[314946981,1708692654564,-474.406872,0.00028219,2]
[314946982,1708692654573,-500.0,0.00028219,2]
[314946983,1708692654582,-721.76,0.00028219,2]
[314946984,1708692654591,-500.0,0.00028257,2]
[314946985,1708692654600,-591.68,0.00028257,2]
[314946986,1708692654609,-500.0,0.00028257,2]
[314946987,1708692654617,-500.0,0.00028257,2]
[314946988,1708692654626,-500.0,0.00028257,2]
[314946989,1708692654636,-500.0,0.00028257,2]
[314946990,1708692654645,-500.0,0.00028257,2]
[314946991,1708692654653,-500.0,0.00028257,2]
[314946992,1708692654662,-401.79,0.00028257,2]
[314946993,1708692654672,-3115.44150694,0.0002826,2]
[314946994,1708692654681,-519.3,0.00028328,2]
[314946995,1708692654690,-383.18,0.00028347,2]
[314946996,1708692654699,-500.0,0.00028356,2]
[314946997,1708692654708,-500.0,0.00028356,2]
[314946998,1708692654717,-500.0,0.00028356,2]
[314946999,1708692654726,-500.0,0.00028356,2]
[314947000,1708692654736,-265.35055893,0.00028356,2]
[314947001,1708692654745,-500.0,0.00028356,2]
[314947002,1708692654755,-500.0,0.00028356,2]
[314947003,1708692654765,-500.0,0.00028356,2]
[314947004,1708692654774,-500.0,0.00028356,2]
[314947005,1708692654784,-500.0,0.00028356,2]
[314947006,1708692654794,-503.84,0.00028356,2]
[314947007,1708692654802,-500.0,0.00028356,2]
[314947008,1708692654811,-500.0,0.00028356,2]
[314947009,1708692654820,-500.0,0.00028356,2]
[314947010,1708692654830,-500.0,0.00028356,2]
[314947011,1708692654839,-500.0,0.00028356,2]
[314947012,1708692654848,-500.0,0.00028356,2]
[314947013,1708692654858,-500.0,0.00028356,2]
[314947014,1708692654867,-500.0,0.00028356,2]
[314947015,1708692654876,-500.0,0.00028356,2]
[314947016,1708692654886,-500.0,0.00028356,2]
[314947017,1708692654895,-500.0,0.00028356,2]
[314947018,1708692654904,-500.0,0.00028356,2]
[314947019,1708692654912,-500.0,0.00028356,2]
[314947020,1708692654921,-687.16,0.00028356,2]
[314947021,1708692654930,-4492.57,0.00028356,2]
[314947022,1708692654939,-500.0,0.00028356,2]
[314947023,1708692654948,-500.0,0.00028356,2]
[314947024,1708692654957,-505.22,0.00028356,2]
[314947025,1708692654966,-500.0,0.00028356,2]
[314947026,1708692654975,-500.0,0.00028356,2]
[314947027,1708692654985,-678.21,0.00028356,2]
[314947028,1708692654994,-500.0,0.00028356,2]
[314947029,1708692655003,-500.0,0.00028356,2]
[314947030,1708692655013,-500.0,0.00028356,2]
[314947031,1708692655022,-500.0,0.00028356,2]
[314947032,1708692655032,-1389.55,0.00028356,2]
[314947033,1708692655041,-2419.95,0.00028356,2]
[314947034,1708692655051,-500.0,0.00028356,2]
[314947035,1708692655061,-500.0,0.00028356,2]
[314947036,1708692655070,-500.0,0.00028356,2]
[314947037,1708692655082,-500.0,0.00028356,2]
[314947038,1708692655091,-1094.13,0.00028356,2]
[314947039,1708692655101,-500.0,0.00028356,2]
[314947040,1708692655110,-500.0,0.00028356,2]
[314947041,1708692655120,-530.85396988,0.00028356,2]
[314947042,1708692655129,-1067.45,0.00028356,2]
[314947043,1708692655139,-500.0,0.00028356,2]
[314947044,1708692655149,-500.0,0.00028356,2]
[314947045,1708692655158,-1378.02,0.00028356,2]
[314947046,1708692655167,-1250.67,0.00028356,2]
[314947047,1708692655176,-500.0,0.00028356,2]
[314947048,1708692655185,-631.42939902,0.00028356,2]
[314947049,1708692655194,-839.9,0.00028356,2]
[314947050,1708692655203,-500.0,0.00028356,2]
[314947051,1708692655211,-1152.06,0.00028356,2]
[314947052,1708692655220,-500.0,0.00028356,2]
[314947053,1708692655230,-1035.56,0.00028356,2]
[314947054,1708692655239,-8575.79,0.00028356,2]
[314947055,1708692655248,-500.0,0.00028356,2]